[Event "FRA-ch Teams Top 16-A 2022"]
[Site "Chartres"]
[Date "2022.06.13"]
[Round "5.17"]
[White "Grandelius, Nils"]
[Black "Van Foreest, Lucas"]
[Result "1/2-1/2"]
[ECO "C65"]
[WhiteElo "2635"]
[BlackElo "2572"]
[Annotator "TA"]
[PlyCount "98"]
[EventDate "2022.06.09"]
[EventType "team-tourn"]
[EventCountry "FRA"]
[SourceTitle "playchess.com"]
[Source "ChessBase"]
[SourceQuality "1"]
[TimeControl "40/5400+30:1800+30"]

{[%evp 9,98,16,10,14,20,11,38,31,14,27,23,25,20,14,7,14,22,7,6,10,22,14,18,14,26,0,0,0,5,5,16,6,12,7,48,48,48,48,48,48,59,59,59,64,59,50,50,51,55,51,51,51,52,52,52,52,61,61,62,62,62,62,62,62,62,62,62,62,62,62,62,62,69,69,69,29,29,29,29,29,29,29,29,29,29,29,29,0,29,0,29]} 1. e4 {[%emt 0:00:42]} e5 {[%emt 0:00:11]} 2. Nf3 {[%emt 0:00:26]} Nc6 {[%emt 0:00:11]} 3. Bb5 {[%emt 0:01:19]} Nf6 {[%emt 0:00:04]} 4. d3 {[%emt 0:01:03]} Bc5 {[%emt 0:00:07]} 5. c3 {[%emt 0:00:14]} O-O {[%emt 0:00:37]} 6. O-O {[%emt 0:00:06] C65: Ruy Lopez: Berlin Defence (3...Nf6), unusual lines and 4 0-0 Bc5.} d5 {[%emt 0:00:27]} 7. Nbd2 {[%emt 0:00:45]} Re8 {[%emt 0:00:31]} 8. exd5 {[%emt 0:01:05] White is slightly better. was the old line (8.Qe2).} a6 {[%emt 0:00:05]} 9. Bxc6 {[%emt 0:04:57]} bxc6 {[%emt 0:00:17] [#]} 10. Nb3 $146 {[%emt 0:00:03]} ({Predecessor:} 10. Ne4 Nxe4 11. dxe4 cxd5 12. Qxd5 Qxd5 13. exd5 e4 14. Nd2 e3 15. fxe3 Bxe3+ 16. Kh1 {½-½ (31) Anand,V (2760)-Aronian,L (2764) Stavanger 2018}) 10... Qxd5 {[%emt 0:00:43]} 11. Nxc5 {[%emt 0:00:08]} Qxc5 {[%emt 0:00:05]} 12. Bg5 {[%emt 0:00:04]} e4 {[%emt 0:03:43]} 13. dxe4 {[%emt 0:00:46]} Nxe4 {[%emt 0:00:19]} 14. Be3 {[%emt 0:00:04]} Qb5 {[%emt 0:01:30]} 15. Qc2 {[%emt 0:02:29]} c5 {[%emt 0:01:30]} 16. Rfe1 {[%emt 0:42:22]} Bb7 {[%emt 0:06:31]} 17. Ng5 {[%emt 0:01:55]} (17. Bf4 $5 {[%cal Rf4c7]}) 17... Nxg5 {[%emt 0:02:10]} 18. Bxg5 {[%emt 0:01:04]} Rxe1+ {[%emt 0:00:57]} 19. Rxe1 {[%emt 0:00:05]} Re8 {[%emt 0:00:05]} 20. Rxe8+ {[%emt 0:03:57]} Qxe8 $11 {[%emt 0:00:03][%cal Re8e1][%mdl 4096] [#] Endgame KQB-KQB} 21. Qd2 {[%emt 0:00:26] Prevents Qe1+.} h6 {[%emt 0:00:48]} (21... Bd5 $5) 22. Qd8 {[%emt 0:06:05]} Qxd8 {[%emt 0:00:05]} 23. Bxd8 $14 {[%emt 0:00:04] KB-KB} Bd5 {[%emt 0:19:00]} 24. b3 {[%emt 0:01:49]} Be4 {[%emt 0:05:50]} 25. Bxc7 {[%emt 0:04:02]} Bb1 {[%emt 0:00:34]} 26. a3 {[%emt 0:00:18]} Ba2 {[%emt 0:00:08]} 27. Bd6 {[%emt 0:06:07]} Bxb3 {[%emt 0:00:02]} 28. Bxc5 {[%emt 0:00:06]} Bc4 {[%emt 0:02:38]} 29. f3 {[%emt 0:06:24]} f5 {[%emt 0:00:14]} 30. Kf2 {[%emt 0:00:27]} Kf7 {[%emt 0:00:06]} 31. Ke3 {[%emt 0:01:51]} Bf1 {[%emt 0:00:04]} 32. g3 {[%emt 0:00:14]} g6 {[%emt 0:00:05]} 33. Kd4 {[%emt 0:07:09]} Ke6 {[%emt 0:00:03]} 34. Bf8 {[%emt 0:01:42]} h5 {[%emt 0:00:03]} 35. f4 {[%emt 0:00:45]} Be2 {[%emt 0:00:07]} 36. Kc5 {[%emt 0:00:42]} Bf1 {[%emt 0:03:14]} 37. Bg7 {[%emt 0:00:53]} Be2 {[%emt 0:00:15]} 38. Bd4 {[%emt 0:00:40]} Bf1 {[%emt 0:00:12]} 39. a4 {[%emt 0:00:39][%cal Ba3a4,Ba4a5][%mdl 32]} Be2 {[%emt 0:01:01]} 40. Kc6 {[%emt 0:00:08]} Bd1 {[%emt 0:01:20]} 41. a5 {[%emt 0:30:30]} Be2 {[%emt 0:30:42]} 42. Kc7 {[%emt 0:01:00]} Bf1 {[%emt 0:00:38]} 43. Kd8 {[%emt 0:00:19]} Bb5 {[%emt 0:00:02]} 44. Be5 {[%emt 0:00:34]} Kf7 {[%emt 0:00:07]} 45. Bd6 {[%emt 0:01:57]} Ke6 {[%emt 0:00:26]} 46. Ba3 {[%emt 0:00:05]} Kf7 {[%emt 0:00:15]} 47. Bb4 {[%emt 0:00:08]} Ke6 {[%emt 0:00:06]} 48. Ba3 {[%emt 0:00:03]} Kf7 {[%emt 0:00:03]} 49. Bb4 {[%emt 0:00:04]} Ke6 {[%emt 0:00:03] Weighted Error Value: White=0.04 (flawless) /Black=0.03 (flawless)} 1/2-1/2

[Event "FRA-ch Teams Top 16-A 2022"]
[Site "Chartres"]
[Date "2022.06.13"]
[Round "5.18"]
[White "Piorun, Kacper"]
[Black "Fedorchuk, Sergey A."]
[Result "1-0"]
[ECO "E00"]
[WhiteElo "2635"]
[BlackElo "2606"]
[Annotator "TA"]
[PlyCount "113"]
[EventDate "2022.06.09"]
[EventType "team-tourn"]
[EventCountry "FRA"]
[SourceTitle "playchess.com"]
[Source "ChessBase"]
[SourceQuality "1"]
[TimeControl "40/5400+30:1800+30"]

{[%evp 9,113,17,16,8,31,3,29,31,42,41,64,58,50,41,49,33,90,89,88,58,55,50,31,39,39,64,46,57,77,74,90,97,86,95,86,88,101,96,114,108,110,0,117,112,135,77,77,74,92,85,84,83,102,106,117,111,122,111,100,88,121,108,113,0,105,96,102,87,88,101,105,95,162,177,326,423,414,428,426,426,431,431,431,431,431,431,524,506,504,493,481,452,611,608,1427,1334,1235,1235,1206,1106,1049,1019,2144,1166,1179,727]} 1. d4 {[%emt 0:00:03]} Nf6 {[%emt 0:00:17]} 2. c4 {[%emt 0:00:08]} e6 {[%emt 0:00:09]} 3. g3 {[%emt 0:00:11]} Bb4+ {[%emt 0:03:57]} 4. Bd2 {[%emt 0:00:10]} Bxd2+ {[%emt 0:03:51]} 5. Nxd2 {[%emt 0:01:53]} d6 {[%emt 0:01:58]} 6. Bg2 {[%emt 0:00:53] E00: Catalan Bogo-Indian (3 g3 Bb4+).} c5 {[%emt 0:04:12]} 7. Ngf3 {[%emt 0:10:01]} Nbd7 {[%emt 0:08:13] [#]} 8. dxc5 $146 {[%emt 1:21:11] White has an edge.} ({Predecessor:} 8. e3 O-O 9. O-O e5 10. Qc2 Re8 11. dxe5 Nxe5 12. h3 Nxf3+ 13. Nxf3 Qe7 14. Rfd1 {1-0 (51) Otruba,M (1933)-Rolinkova,L (1466) Czech Republic 2018}) 8... Nxc5 {[%emt 1:11:53]} 9. b4 {[%emt 0:00:30]} Ncd7 {[%emt 0:00:30]} 10. O-O {[%emt 0:00:30]} a5 {[%emt 0:00:30]} 11. Nb3 {[%emt 0:00:00]} axb4 {[%emt 0:00:00]} 12. Qxd6 {[%emt 0:00:00]} Qb6 {[%emt 0:00:00]} (12... Qe7 $1 $14 13. Qxe7+ Kxe7) 13. Qxb6 $16 {[%emt 0:00:00]} Nxb6 {[%emt 0:00:00][%cal Bd7b6,Bb6c4,Bc4a3][%mdl 32]} 14. Ne5 {[%emt 0:00:00]} Nfd7 {[%emt 0:00:00]} 15. Nd3 {[%emt 0:00:00] Hoping for c5.} Nxc4 {[%emt 0:00:00]} 16. Rfc1 {[%emt 0:00:00]} Na3 {[%emt 0:00:00]} 17. Rc7 {[%emt 0:00:00][%mdl 1024] White has compensation.} Nb5 {[%emt 0:00:00]} 18. Rc4 {[%emt 0:00:00]} Na3 {[%emt 0:00:00]} 19. Rh4 {[%emt 0:00:00]} (19. Rxb4 $2 Nc2 20. a4 O-O $17) 19... Ke7 {[%emt 0:00:00]} 20. Rc1 {[%emt 0:05:00]} (20. Rxb4 $2 Nc2 21. Rd1 Nxb4 22. Nxb4 Rd8 $19) 20... Nb5 {[%emt 0:00:00]} 21. Rxb4 {[%emt 0:00:00]} Nd6 {[%emt 0:00:00]} 22. a4 {[%emt 0:01:00]} Rd8 {[%emt 0:06:00]} 23. f4 {[%emt 0:00:00]} f6 {[%emt 0:00:00]} 24. Rc7 {[%emt 0:00:00]} Ne8 {[%emt 0:00:00]} 25. Rc1 {[%emt 0:00:00] White is much more active.} Nd6 {[%emt 0:00:00]} 26. Kf2 {[%emt 0:00:00]} Ra6 {[%emt 0:00:00]} 27. Nbc5 {[%emt 0:00:00]} (27. Rc7 $142) 27... Nxc5 {[%emt 0:00:00]} 28. Nxc5 {[%emt 0:00:00]} Ra5 {[%emt 0:00:00]} 29. Nxb7 {[%emt 0:00:00]} Bxb7 {[%emt 0:00:00]} 30. Bxb7 {[%emt 0:00:00]} Rb8 {[%emt 0:00:00]} 31. Rcb1 {[%emt 0:00:00]} f5 {[%emt 0:00:00]} 32. Bf3 {[%emt 0:00:00]} Rc8 {[%emt 0:00:00]} 33. Rd1 {[%emt 0:01:14]} Rc7 {[%emt 0:00:49]} 34. Rdd4 {[%emt 0:03:19]} h6 {[%emt 0:01:18]} 35. Rb6 {[%emt 0:00:32]} Nc4 {[%emt 0:03:10]} 36. Rb4 {[%emt 0:00:15]} Nd6 {[%emt 0:00:33]} 37. h4 $36 {[%emt 0:00:26][%mdl 2048] White is really pushing. White stays focused until the end.} Ra6 {[%emt 0:00:19]} 38. h5 {[%emt 0:01:18]} Rc2 {[%emt 0:00:34]} 39. Ke3 {[%emt 0:00:35]} Ra5 {[%emt 0:00:43]} 40. Kd3 {[%emt 0:00:22]} Ra2 {[%emt 0:00:42]} (40... Rac5 $16 {is a better defense.} 41. Ke3 Ra5) 41. Rb6 $18 {[%emt 0:30:24]} e5 {[%emt 0:20:19]} (41... Ne4 {was worth a try.}) 42. Rdxd6 {[%emt 0:00:00]} (42. fxe5 Nf7 43. Kc3 (43. Rb7+ Ke6 $18) 43... Nxe5 $18) 42... e4+ {[%emt 0:00:04]} 43. Ke3 {[%emt 0:00:00]} Ra3+ {[%emt 0:10:14] White is clearly winning.} 44. Kf2 {[%emt 0:00:00]} exf3 {[%emt 0:00:05][%mdl 4096] Endgame [#] KRR-KRR} 45. Rg6 $1 {[%emt 0:00:00]} fxe2 {[%emt 0:00:38]} 46. Rxg7+ {[%emt 0:00:00]} Kf8 {[%emt 0:00:03]} 47. Rh7 {[%emt 0:00:00][%cal Rb6b8]} ({Weaker is} 47. Rc7 Ra8 48. Rf6+ Kg8 49. Rg6+ (49. Rxh6 Rxg3 50. Re6 Rh3 $16) (49. Rxf5 Re8 $16) 49... Kf8 50. Rf6+ (50. Kxe2 R8xa4 51. Rxh6 Ra2+ 52. Kf1 Ra1+ 53. Kf2 R1a2+ 54. Kg1 Ra1+ 55. Kf2 R1a2+ 56. Kf1 Ra1+ 57. Kf2 $16) 50... Kg8 51. Rg6+ (51. Rxh6 Rxg3 52. Re6 Rh3 $16) (51. Rxf5 Re8 $16) 51... Kf8 52. Rf6+ $18 (52. Kxe2 R8xa4 53. Rc2 Ke8 $18)) 47... e1=Q+ {[%emt 0:00:06]} 48. Kxe1 {[%emt 0:00:00][%cal Rb6b8]} Kg8 {[%emt 0:00:06]} 49. Rc7 {[%emt 0:00:00][%cal Rb6b8]} Ra8 {[%emt 0:00:05] Inhibits Rb8+.} 50. Rg6+ {[%emt 0:00:00]} Kf8 {[%emt 0:00:06]} 51. Rc5 {[%emt 0:00:00]} Re8+ {[%emt 0:02:36]} 52. Kf2 {[%emt 0:00:00]} Ra2+ {[%emt 0:01:27]} 53. Kf3 {[%emt 0:00:00]} Ra3+ {[%emt 0:00:23] [#]} 54. Kg2 $1 {[%emt 0:00:00]} Re2+ {[%emt 0:00:11]} 55. Kh3 {[%emt 0:00:00]} Rxa4 {[%emt 0:00:34]} 56. Rxf5+ {[%emt 0:00:00]} Ke7 {[%emt 0:00:02]} 57. Rxh6 {[%emt 0:00:00] Weighted Error Value: White=0.09 (flawless) /Black=0.20 (precise)} 1-0

[Event "FRA-ch Teams Top 16-A 2022"]
[Site "Chartres"]
[Date "2022.06.13"]
[Round "5.19"]
[White "Jones, Gawain C B"]
[Black "Malakhov, Vladimir"]
[Result "1/2-1/2"]
[ECO "C45"]
[WhiteElo "2669"]
[BlackElo "2652"]
[Annotator "TA"]
[PlyCount "168"]
[EventDate "2022.06.09"]
[EventType "team-tourn"]
[EventCountry "FRA"]
[SourceTitle "playchess.com"]
[Source "ChessBase"]
[SourceQuality "1"]
[TimeControl "40/5400+30:1800+30"]

{[%evp 13,168,7,10,0,14,0,0,0,0,0,0,0,0,0,0,0,0,-11,39,39,35,29,36,38,32,38,38,36,37,39,43,53,53,47,42,50,31,0,0,0,35,45,35,37,68,35,52,0,37,0,87,37,66,49,156,156,165,170,468,418,500,565,560,543,521,285,239,220,210,82,234,8,8,8,238,237,238,0,36,0,247,45,518,518,441,462,439,1078,1039,984,870,869,1116,1012,1121,1135,1054,974,1095,1084,903,614,1244,1054,984,131,245,245,245,197,235,310,310,0,0,0,0,0,0,0,0,0,0,0,0,0,0,0,0,0,0,0,0,0,0,0,0,0,0,0,0,0,0,0,0,0,0,7,8,0,8,0,0,0,0,0,0]} 1. e4 {[%emt 1:31:00]} e5 {[%emt 0:00:19]} 2. Nf3 {[%emt 0:00:00]} Nc6 {[%emt 0:00:06]} 3. d4 {[%emt 0:00:00]} exd4 {[%emt 0:00:15]} 4. Nxd4 {[%emt 0:00:00]} Bc5 {[%emt 0:00:07]} 5. Nb3 {[%emt 0:00:00]} Bb6 {[%emt 0:00:08]} 6. Nc3 {[%emt 0:00:00]} Nf6 {[%emt 0:00:10]} 7. Qe2 {[%emt 0:00:00]} a5 {[%emt 0:00:35]} 8. a4 {[%emt 0:00:00]} O-O {[%emt 0:00:30]} 9. Bg5 {[%emt 0:00:00]} h6 {[%emt 0:00:23]} 10. Bh4 {[%emt 0:00:00]} Nd4 {[%emt 0:00:08]} 11. Qd3 {[%emt 0:00:00]} Nxb3 {[%emt 0:00:09]} 12. cxb3 {[%emt 0:00:00]} c6 {[%emt 0:00:11]} 13. O-O-O {[%emt 0:00:00]} d5 {[%emt 0:00:16]} 14. exd5 {[%emt 0:00:00]} cxd5 {[%emt 0:00:14]} 15. Qc2 {[%emt 0:00:00]} Be6 {[%emt 0:01:05]} (15... d4 $11) 16. Nxd5 $1 $14 {[%emt 0:00:00]} Bxd5 {[%emt 0:00:07]} 17. Bxf6 {[%emt 0:00:00]} Qxf6 {[%emt 0:00:06]} ({Much less strong is} 17... gxf6 18. Bc4 Rc8 19. Rxd5 Qxd5 20. Bxd5 $16) 18. Rxd5 {[%emt 0:00:00]} Qxf2 {[%emt 0:00:08]} 19. Bc4 {[%emt 0:00:00]} Be3+ {[%emt 0:01:22]} 20. Kb1 {[%emt 0:00:00]} Qxc2+ {[%emt 0:00:35]} 21. Kxc2 {[%emt 0:00:00]} Rfd8 {[%emt 0:00:19]} 22. Rf1 {[%emt 0:00:00]} Rxd5 {[%emt 0:02:48]} 23. Bxd5 {[%emt 0:00:00]} Rc8+ {[%emt 0:00:28]} 24. Kd3 {[%emt 0:00:00]} Rd8 {[%emt 0:00:29]} 25. Ke4 {[%emt 0:00:00]} Re8+ {[%emt 0:00:24]} 26. Kd3 {[%emt 0:00:00]} Rd8 {[%emt 0:00:11]} 27. Kxe3 {[%emt 0:00:00]} Rxd5 {[%emt 0:00:16]} 28. b4 {[%emt 0:00:00]} Re5+ {[%emt 1:00:31]} 29. Kd3 {[%emt 0:00:00]} (29. Kd4 $5 {[%cal Rd4e5]} Re2 30. bxa5 Rxb2 31. Kc5 $14) 29... Rd5+ {[%emt 0:02:40]} 30. Ke3 {[%emt 0:00:00]} Re5+ {[%emt 0:00:06]} 31. Kd3 {[%emt 0:00:00]} (31. Kd2 $14) 31... Rd5+ $1 $16 {[%emt 0:00:41]} 32. Kc2 {[%emt 0:00:00]} (32. Kc4 $1 $16 {[%cal Rc4d5]} Rd2 33. bxa5 Rxb2 34. Kc5) 32... Rg5 {[%emt 0:12:40]} 33. g3 {[%emt 0:00:00]} b5 {[%emt 0:00:07]} (33... Kf8 $14) 34. b3 $16 {[%emt 0:00:00]} ({Inferior is} 34. bxa5 bxa4 35. a6 Ra5 $11) 34... bxa4 {[%emt 0:06:15]} 35. bxa4 {[%emt 0:00:00]} axb4 $2 {[%emt 0:00:06]} (35... Kf8 36. Kb3 (36. b5 Rg4 $16) 36... Ke7) 36. Kb3 $18 {[%emt 0:00:00]} Kf8 {[%emt 0:01:48]} 37. Ra1 {[%emt 0:08:05]} Ra5 {[%emt 0:00:20]} 38. Kxb4 {[%emt 0:00:13]} Ra8 {[%emt 0:00:04]} 39. Re1 {[%emt 0:09:23]} Rb8+ {[%emt 0:00:22]} 40. Kc5 {[%emt 0:00:25]} Rb2 {[%emt 0:05:14]} 41. h4 {[%emt 0:18:12]} (41. a5 $18 {has better winning chances.}) 41... g5 $2 {[%emt 0:01:18]} (41... Ra2 $16 {is a better defense.}) 42. hxg5 $2 {[%emt 0:09:41]} (42. Ra1 $1 $18) 42... hxg5 $11 {[%emt 0:00:10]} 43. Ra1 {[%emt 0:00:46]} Rc2+ $2 {[%emt 0:06:43]} (43... Rb3 $11 {and Black has nothing to worry.}) 44. Kd4 {[%emt 0:00:21]} Rd2+ {[%emt 0:01:00]} 45. Kc5 $2 {[%emt 0:00:04]} (45. Ke4 $1 $18) 45... Rc2+ $14 {[%emt 0:00:30]} 46. Kd4 $2 {[%emt 0:00:10]} (46. Kb6 $14 Ke7 47. a5) 46... Rd2+ $1 $18 {[%emt 0:00:04]} 47. Ke5 $2 {[%emt 0:00:35]} (47. Ke4 $1 $18) 47... Re2+ $2 {[%emt 0:00:07][%mdl 8192]} ({Better is} 47... Rd3 $1 $14) 48. Kf5 $18 {[%emt 0:00:08]} Re6 {[%emt 0:00:07]} 49. a5 {[%emt 0:00:13]} Ra6 {[%emt 0:00:05]} 50. Kxg5 {[%emt 0:00:47]} Ke7 {[%emt 0:00:45]} 51. Kf5 {[%emt 0:00:09]} Kd7 {[%emt 0:00:33]} 52. g4 {[%emt 0:00:20]} Ke7 {[%emt 0:00:15]} 53. Ke5 {[%emt 0:00:11]} Kd7 {[%emt 0:00:53]} 54. Rd1+ {[%emt 0:00:24]} Ke7 {[%emt 0:01:06]} 55. Rd5 $1 {[%emt 0:00:10]} Rg6 {[%emt 0:00:32]} 56. Kf5 {[%emt 0:00:22]} Rf6+ {[%emt 0:00:57]} 57. Ke4 {[%emt 0:00:13]} Rf1 {[%emt 0:01:22]} 58. Re5+ {[%emt 0:01:53]} Kd6 {[%emt 0:00:08]} 59. Rf5 $2 {[%emt 0:00:05]} (59. Rb5 $1 $18 {and the rest is easy.} Ra1 60. Kf4) 59... Re1+ {[%emt 0:02:15] [#]} (59... Ra1 $16 {was worth a try.} 60. Rf6+ Ke7) 60. Kf4 $1 $18 {[%emt 0:00:10]} Ra1 {[%emt 0:04:34]} 61. Kg5 {[%emt 0:00:38]} Ke6 {[%emt 0:01:21]} 62. Rf6+ {[%emt 0:00:42]} Ke7 {[%emt 0:00:13] [#]} 63. Rf5 $2 {[%emt 0:00:09]} (63. Ra6 $1 $18) 63... Ke6 $1 $11 {[%emt 0:02:08]} 64. Rb5 {[%emt 0:00:05]} f6+ $1 {[%emt 0:08:34]} 65. Kg6 {[%emt 0:00:06]} Ra4 {[%emt 0:00:06]} 66. Kh5 {[%emt 0:00:15]} Ra1 {[%emt 0:00:11]} 67. Rf5 {[%emt 0:01:02]} Ra4 {[%emt 0:02:51]} 68. Rc5 {[%emt 0:00:36]} Ra1 {[%emt 0:00:10]} 69. Rb5 {[%emt 0:00:36]} Kf7 {[%emt 0:03:01]} 70. Rb7+ {[%emt 0:00:16]} Ke6 {[%emt 0:00:04]} 71. Rb5 {[%emt 0:01:45]} Kf7 {[%emt 0:00:12]} 72. Kh4 {[%emt 0:00:05]} Kg6 {[%emt 0:01:13]} 73. Kg3 {[%emt 0:00:08]} Ra4 {[%emt 0:00:13]} 74. Kf3 {[%emt 0:00:10]} Kh6 {[%emt 0:00:24]} 75. Rh5+ {[%emt 0:01:00]} Kg6 {[%emt 0:00:11]} 76. Rf5 {[%emt 0:00:09]} Ra3+ {[%emt 0:00:50]} 77. Kf2 {[%emt 0:00:51]} Ra4 {[%emt 0:00:17]} 78. Kg3 {[%emt 0:00:54]} Ra3+ {[%emt 0:00:05]} 79. Kh4 {[%emt 0:00:03]} Ra4 {[%emt 0:00:09]} 80. Rc5 {[%emt 0:00:25]} Ra3 {[%emt 0:00:20]} 81. Rb5 {[%emt 0:00:09]} Kh6 {[%emt 0:01:08]} 82. g5+ {[%emt 0:00:40]} fxg5+ {[%emt 0:00:04]} 83. Rxg5 {[%emt 0:00:36]} Ra4+ {[%emt 0:00:04]} 84. Rg4 {[%emt 0:00:03]} Rxa5 {[%emt 0:00:02]} 1/2-1/2

[Event "FRA-ch Teams Top 16-A 2022"]
[Site "Chartres"]
[Date "2022.06.13"]
[Round "5.20"]
[White "Flom, Gabriel"]
[Black "Korobov, Anton"]
[Result "1/2-1/2"]
[ECO "D31"]
[WhiteElo "2442"]
[BlackElo "2671"]
[Annotator "TA"]
[PlyCount "44"]
[EventDate "2022.06.09"]
[EventType "team-tourn"]
[EventCountry "FRA"]
[SourceTitle "playchess.com"]
[Source "ChessBase"]
[SourceQuality "1"]
[TimeControl "40/5400+30:1800+30"]

{[%evp 17,44,25,20,11,27,20,30,15,18,10,6,19,13,23,36,14,48,29,33,15,16,14,20,18,38,35,28,19,30]} 1. d4 {[%emt 0:00:02]} d5 {[%emt 0:00:09]} 2. c4 {[%emt 0:00:17]} e6 {[%emt 0:00:09]} 3. Nc3 {[%emt 0:02:56]} c6 {[%emt 0:00:11]} 4. e4 {[%emt 0:11:32]} dxe4 {[%emt 0:03:36]} 5. Nxe4 {[%emt 0:00:03]} Bb4+ {[%emt 0:00:07]} 6. Bd2 {[%emt 0:00:08][%cal Bc1d2,Bd2b4,Bb4f8,Bf8g7][%mdl 32]} Qxd4 {[%emt 0:00:17]} 7. Bxb4 {[%emt 0:00:03]} Qxe4+ {[%emt 0:00:08]} 8. Ne2 {[%emt 0:00:02]} Na6 {[%emt 0:00:31][%cal Bb8a6,Ba6b4,Bb4d3][%mdl 32]} 9. Bf8 {[%emt 0:00:08]} Ne7 {[%emt 0:01:29]} 10. Bxg7 {[%emt 0:03:34] D31: Queen's Gambit Declined: Semi-Slav without ...Nf6 (+ Marshall Gambit and Noteboom) and Exchange Variation lines without ...Nf6.} Nb4 {[%emt 0:02:49]} 11. Qd6 {[%emt 0:17:04]} Nd3+ {[%emt 0:02:42]} 12. Kd2 {[%emt 0:00:22][%cal Be1d2,Bd2d3,Bd3c3][%mdl 32] White has an edge.} Nf5 {[%emt 0:00:18]} 13. Qxd3 {[%emt 0:00:03] The board is on fire.} Qxd3+ {[%emt 0:00:07]} 14. Kxd3 {[%emt 0:00:01]} Nxg7 {[%emt 0:00:08]} 15. Kc3 {[%emt 0:01:35]} Ke7 {[%emt 0:05:48] [#]} 16. g3 $146 {[%emt 0:04:32]} ({Predecessor:} 16. Re1 Bd7 17. g3 Rad8 18. Bg2 f6 19. f4 h5 20. Nc1 Be8 21. b4 Bg6 22. a4 {½-½ (54) Aleksandrov,A (2617)-Zhigalko,S (2668) Minsk 2010}) 16... Rd8 {[%emt 0:08:14]} 17. Bg2 $36 {[%emt 0:00:31][%mdl 2048] White is pushing.} e5 {[%emt 0:00:38]} 18. f4 {[%emt 0:08:23]} Bf5 {[%emt 0:00:29] [#] And now ...Rd3+ would win.} 19. Rad1 {[%emt 0:00:03] Inhibits Rd3+.} f6 {[%emt 0:00:47]} 20. fxe5 {[%emt 0:01:05]} fxe5 {[%emt 0:00:07]} 21. Nc1 {[%emt 0:01:33]} Rxd1 {[%emt 0:07:04]} 22. Rxd1 {[%emt 0:00:02]} Ne6 {[%emt 0:13:02] Weighted Error Value: White=0.04 (flawless) /Black=0.08 (flawless)} 1/2-1/2

[Event "FRA-ch Teams Top 16-A 2022"]
[Site "Chartres"]
[Date "2022.06.13"]
[Round "5.21"]
[White "Edouard, Romain"]
[Black "Shchekachev, Andrei"]
[Result "1-0"]
[ECO "C84"]
[WhiteElo "2575"]
[BlackElo "2508"]
[Annotator "TA"]
[PlyCount "73"]
[EventDate "2022.06.09"]
[EventType "team-tourn"]
[EventCountry "FRA"]
[SourceTitle "playchess.com"]
[Source "ChessBase"]
[SourceQuality "1"]
[TimeControl "40/5400+30:1800+30"]

{[%evp 12,73,35,-4,17,12,26,16,11,0,0,0,0,2,6,12,11,-26,13,13,21,17,29,26,22,6,45,0,20,-31,19,12,13,17,12,14,15,20,19,12,22,0,127,57,74,18,65,0,220,216,151,278,214,136,29992,0,29993,29994,29994,29995,29995,29996,29996,29997]} 1. e4 {[%emt 0:00:03]} e5 {[%emt 0:00:28]} 2. Nf3 {[%emt 0:00:07]} Nc6 {[%emt 0:00:14]} 3. Bb5 {[%emt 0:00:14]} a6 {[%emt 0:00:11]} 4. Ba4 {[%emt 0:00:04]} Nf6 {[%emt 0:00:11]} 5. O-O {[%emt 0:00:13]} Be7 {[%emt 0:00:32]} 6. d3 {[%emt 0:01:15]} d6 {[%emt 0:00:57]} 7. c4 {[%emt 0:03:58]} O-O {[%emt 0:03:12] C84: Closed Ruy Lopez: Unusual White 6th moves.} 8. h3 {[%emt 0:00:25]} Nd4 {[%emt 0:00:42]} 9. Nxd4 {[%emt 0:00:06]} exd4 {[%emt 0:00:08] The position is equal.} 10. f4 {[%emt 0:00:15]} c6 {[%emt 0:12:47]} 11. Nd2 {[%emt 0:00:40] [#]} b5 $146 {[%emt 0:02:18]} ({Predecessor:} 11... Qb6 12. Nf3 Nd7 13. Qe1 a5 14. Qf2 Bf6 15. g4 h6 16. Bc2 Rd8 17. h4 g6 {1-0 (30) Polgar,J (2675)-Comp Junior on Alpha Budapest 1996}) 12. Bc2 {[%emt 0:06:37]} Nd7 {[%emt 0:05:17]} 13. Nf3 {[%emt 0:00:57]} c5 {[%emt 0:00:24]} 14. g4 {[%emt 0:00:26]} Re8 {[%emt 0:08:04]} 15. b3 {[%emt 0:01:50]} Nb8 {[%emt 0:05:24]} 16. Qe1 {[%emt 0:00:45]} Nc6 {[%emt 0:00:30]} 17. Bd2 {[%emt 0:00:14]} Rb8 {[%emt 0:00:40]} 18. Qg3 {[%emt 0:01:07]} Qd7 {[%emt 0:24:20]} 19. Kg2 {[%emt 0:02:55]} Bd8 {[%emt 0:00:41]} 20. Rae1 {[%emt 0:00:39]} (20. f5 $11) 20... Ba5 {[%emt 0:01:34]} ({Black should play} 20... bxc4 $15 21. bxc4 (21. dxc4 a5 $11) 21... Rb2) 21. Bxa5 $11 {[%emt 0:00:28]} Nxa5 {[%emt 0:00:01]} 22. g5 {[%emt 0:04:05]} Nc6 {[%emt 0:00:32]} 23. Nh2 {[%emt 0:01:18]} Qd8 {[%emt 0:02:39]} 24. Ng4 {[%emt 0:00:39][%cal Og4f6]} Kh8 {[%emt 0:01:26]} 25. Kh2 {[%emt 0:01:17]} Qa5 {[%emt 0:04:50]} 26. Re2 {[%emt 0:03:43]} Qc3 {[%emt 0:06:55]} (26... bxc4 $11 27. f5 c3 28. Qxd6 Qb6) 27. Rg2 {[%emt 0:08:48]} (27. f5 $16 bxc4 28. bxc4 (28. Qxd6 $2 cxd3 29. Bxd3 Qxd3 $19)) 27... Bxg4 $14 {[%emt 0:05:09]} 28. hxg4 {[%emt 0:00:06]} bxc4 {[%emt 0:00:02]} (28... Nb4 $1 $11 29. Bb1 bxc4) 29. Rf3 {[%emt 0:02:56]} (29. bxc4 $14 Kg8 30. Kg1) 29... Nb4 $2 {[%emt 0:06:20] [#]} (29... Kg8 $11) 30. Qh4 $1 $18 {[%emt 0:02:24]} Nxc2 {[%emt 0:04:51] [#]} (30... cxd3 31. Rh3) 31. Rh3 $1 {[%emt 0:00:10][%csl Gh3][%cal Rh4h7]} Kg8 {[%emt 0:01:08]} (31... h6 $2 32. gxh6 Re6 33. hxg7+ Kxg7 34. f5 $18) 32. f5 {[%emt 0:02:02] The board is on fire.} Ne3 $2 {[%emt 0:01:52][%mdl 8192]} (32... cxb3 {gets mated.} 33. Qxh7+ Kf8 34. f6 gxf6 35. gxf6 bxa2 36. Qh8#) (32... Kf8 $16 33. f6 gxf6) 33. Qxh7+ {[%emt 0:02:06]} Kf8 {[%emt 0:00:04] ...Ke7 is the strong threat.} 34. f6 {[%emt 0:00:02] White mates.} gxf6 {[%emt 0:00:14] [#]} 35. gxf6 $1 {[%emt 0:00:10][%cal Rh7h8]} Nxg4+ {[%emt 0:00:03]} 36. Rxg4 {[%emt 0:00:09][%csl Gg4][%cal Rh7g8]} Qd2+ {[%emt 0:00:07]} 37. Kh1 {[%emt 0:00:07] Weighted Error Value: White=0.16 (very precise) /Black=0.50} 1-0